bitfinex/quotes_SOLUSD_20250829
["timestamp","ask_amount","ask_price","bid_price","bid_amount"]
[1756453076559,0.69,209.0,208.95,19.12993639]
[1756453076985,39.59559401,208.98,208.86,4.78789619]
[1756453077189,39.59559401,208.98,208.93,19.12993639]
[1756453077348,13.59559401,208.96,208.87,0.71]
[1756453077548,0.69,208.95,208.91,19.12993639]
[1756453077774,0.69,208.95,208.87,0.71]
[1756453077980,0.69,208.95,208.91,19.12993639]
[1756453078478,18.38098667,208.97,208.92,19.12993639]
[1756453078678,0.69,208.96,208.92,19.12993639]
[1756453079366,0.69,208.96,208.91,19.12993639]
[1756453080169,0.69,208.99,208.92,19.12993639]
[1756453080365,13.59559401,208.99,208.91,5.49668504]
[1756453080560,19.12993639,209.01,208.94,19.12993639]
[1756453080871,19.12993639,208.99,208.89,0.66]
[1756453081058,13.59559401,208.97,208.92,19.12993639]
[1756453081254,0.67,208.96,208.92,19.12993639]
[1756453081454,30.78427592,209.02,208.92,19.12993639]
[1756453081661,19.12993639,208.99,208.93,19.12993639]
[1756453081876,19.12993639,208.98,208.92,19.12993639]
[1756453082067,4.78537589,208.97,208.92,19.12993639]
[1756453082269,19.12993639,208.98,208.89,5.44716143]
[1756453082454,13.59559401,208.98,208.89,5.44716143]
[1756453082656,19.12993639,208.99,208.92,19.12993639]
[1756453082864,23.91485795,208.99,208.9,0.66]
[1756453083062,23.91485795,208.99,208.93,19.12993639]
[1756453083568,19.12993639,209.0,208.94,19.12993639]
[1756453083755,19.12993639,208.99,208.92,19.78993639]
[1756453083990,19.12993639,208.99,208.92,0.66]
[1756453084199,4.7851469,208.98,208.92,19.12993639]
[1756453084480,19.12993639,209.02,208.96,19.12993639]
[1756453084855,19.12993639,209.03,208.97,19.12993639]
[1756453085050,43.02,209.09,208.99,19.12993639]
[1756453085285,43.02,209.09,208.98,19.78993639]
[1756453085286,19.12993639,209.04,208.98,19.78993639]
[1756453085473,19.12993639,209.04,208.98,19.12993639]
[1756453085662,19.12993639,209.04,208.95,0.66]
[1756453086078,19.12993639,209.04,208.98,19.12993639]
[1756453086462,19.12993639,209.05,208.99,19.12993639]
[1756453086659,54.97657372,209.09,209.0,19.12993639]
[1756453086660,43.02,209.09,209.0,19.12993639]
[1756453086866,19.12993639,209.07,209.01,19.12993639]
[1756453087364,19.12993639,209.08,209.02,19.12993639]
[1756453087568,4.78166603,209.14,209.07,19.12993639]
[1756453087771,0.06,209.16,209.08,0.66]
[1756453088069,30.84105262,209.16,209.12,19.12993639]
[1756453088274,30.84105262,209.16,209.08,0.66]
[1756453088275,26.0,209.1,209.02,0.66]
[1756453088476,26.0,209.09,209.08,19.12993639]
[1756453088671,26.0,209.09,209.07,19.12993639]
[1756453088987,26.0,209.1,209.07,19.12993639]
[1756453089194,26.0,209.09,209.07,19.12993639]
[1756453089764,4.84105262,209.16,209.08,19.12993639]
[1756453089958,0.06,209.16,209.15,19.12993639]
[1756453090196,0.06,209.16,209.15,19.78993639]
[1756453090566,0.73,209.29,209.15,24.57119386]
[1756453090773,0.73,209.29,209.23,19.12993639]
[1756453090979,0.06,209.29,209.25,19.12993639]
[1756453091174,0.06,209.29,209.26,19.12993639]
[1756453091565,0.06,209.29,209.27,19.12993639]
[1756453091870,0.06,209.29,209.28,19.12993639]
[1756453092272,0.06,209.29,209.28,19.78993639]
[1756453092674,0.06,209.35,209.29,4.77805915]
[1756453092876,0.1,209.37,209.34,19.12993639]
[1756453093075,0.06,209.38,209.36,19.12993639]
[1756453093279,0.06,209.42,209.37,19.12993639]
[1756453093476,0.06,209.42,209.34,0.58]
[1756453093677,0.67,209.41,209.37,19.12993639]
[1756453093886,13.65559401,209.4,209.37,19.12993639]
[1756453094094,13.65559401,209.4,209.38,19.12993639]
[1756453094095,0.06,209.4,209.38,19.12993639]
[1756453094384,0.06,209.4,209.35,0.58]
[1756453094620,0.06,209.4,209.39,19.12993639]
[1756453094785,0.06,209.4,209.37,0.58]
[1756453094963,0.06,209.4,209.39,19.12993639]
[1756453095907,0.06,209.4,209.39,19.70993639]
[1756453096082,0.06,209.4,209.39,43.54]
[1756453096281,0.06,209.42,209.39,86.57556878]
[1756453096480,0.06,209.42,209.41,19.12993639]
[1756453096911,0.06,209.45,209.43,26.0]
[1756453097212,0.06,209.45,209.44,62.06993639]
[1756453097585,0.06,209.45,209.4,19.12993639]
[1756453097905,0.06,209.45,209.29,11.944884]
[1756453097906,0.06,209.45,209.44,19.12993639]
[1756453098807,0.06,209.45,209.12,23.90969971]
[1756453098808,0.73,209.45,209.43,19.12993639]
[1756453099113,13.59559401,209.44,209.41,19.12993639]
[1756453099311,13.59559401,209.42,209.32,0.58]
[1756453099509,13.59559401,209.42,209.37,19.12993639]
[1756453099802,0.67,209.41,209.26,4.77869149]
[1756453100106,13.59559401,209.4,209.3,26.0]
[1756453100295,4.77577725,209.39,209.36,19.12993639]
[1756453100478,13.59559401,209.38,209.34,19.12993639]
[1756453100683,0.67,209.37,209.33,19.12993639]
[1756453100916,13.59559401,209.38,209.33,19.12993639]
[1756453101104,0.67,209.36,209.33,19.12993639]
[1756453101886,13.59559401,209.38,209.29,42.92]
[1756453102118,14.26559401,209.38,209.33,19.12993639]
[1756453102295,18.3720556,209.36,209.32,19.12993639]
[1756453102495,18.3720556,209.36,209.33,19.12993639]
[1756453102806,4.77617064,209.38,209.34,19.12993639]
[1756453103008,4.77584534,209.39,209.36,19.12993639]
[1756453103212,13.59559401,209.37,209.34,19.12993639]
[1756453103393,14.26559401,209.37,209.34,19.12993639]
[1756453103791,14.26559401,209.37,209.31,42.9]
[1756453104097,4.77584534,209.39,209.35,19.12993639]
[1756453104606,0.67,209.38,209.35,19.12993639]
[1756453104985,0.67,209.43,209.37,19.12993639]
[1756453105208,13.59559401,209.42,209.38,19.12993639]
[1756453105512,0.73,209.47,209.41,19.12993639]
[1756453105717,0.06,209.47,209.44,19.12993639]
[1756453106504,0.06,209.47,209.44,24.48457351]
[1756453106708,0.06,209.47,209.44,62.02993639]
[1756453107229,0.06,209.47,209.44,62.00993639]
[1756453107535,0.73,209.45,209.4,42.88]
[1756453107838,0.67,209.44,209.38,26.0]
[1756453108142,33.3955304,209.43,209.36,62.00993639]
[1756453108512,13.59559401,209.41,209.36,19.12993639]
[1756453108720,0.67,209.4,209.35,19.12993639]
[1756453108944,0.67,209.39,209.35,19.12993639]
[1756453109627,13.59559401,209.41,209.33,42.88]
[1756453109628,13.59559401,209.41,209.36,19.12993639]
[1756453110035,14.26559401,209.41,209.36,19.12993639]
[1756453110505,13.59559401,209.43,209.36,19.12993639]
[1756453110706,13.59559401,209.43,209.37,19.12993639]
[1756453110912,13.65559401,209.45,209.4,19.12993639]
[1756453111434,0.06,209.42,209.36,0.03]
[1756453111739,13.59559401,209.4,209.36,0.03]
[1756453111911,0.66,209.39,209.36,0.03]
[1756453113126,0.66,209.38,209.36,0.03]
[1756453113332,13.59559401,209.37,209.36,0.03]
[1756453113632,33.3855304,209.37,209.36,0.03]
[1756453114027,14.25559401,209.37,209.36,0.03]
[1756453114713,0.66,209.41,209.36,0.03]
[1756453114912,0.66,209.41,209.37,19.12993639]
[1756453115118,0.66,209.41,209.36,19.15993639]
[1756453115729,13.59559401,209.4,209.36,0.03]
[1756453115934,0.06,209.42,209.39,19.12993639]
[1756453116105,0.06,209.42,209.4,19.12993639]
[1756453116305,0.06,209.42,209.41,19.12993639]
[1756453116739,0.06,209.42,209.41,24.48525753]
[1756453117248,0.06,209.45,209.44,26.0]
[1756453117410,0.06,209.45,209.44,87.96993639]
[1756453117742,0.06,209.45,209.44,69.36]
[1756453117941,0.06,209.45,209.44,88.48993639]
[1756453118746,0.06,209.45,209.44,93.26457351]
[1756453119105,0.06,209.45,209.44,50.42457351]
[1756453119345,0.06,209.45,209.44,74.13463712]
[1756453119645,0.06,209.45,209.44,93.26457351]
[1756453119939,0.06,209.45,209.44,50.42457351]
[1756453120146,1e-08,209.45,209.44,93.26457351]
[1756453120314,1e-08,209.45,209.44,98.26457351]
[1756453120632,1e-08,209.45,209.44,98.24457351]
[1756453120844,1e-08,209.45,209.44,35.77463712]
[1756453121077,1e-08,209.45,209.42,4.77486863]
[1756453121245,1e-08,209.45,209.44,45.12993639]
[1756453121451,1e-08,209.45,209.44,26.0]
[1756453121981,1e-08,209.45,209.44,45.64993639]
[1756453122176,1e-08,209.45,209.44,45.12993639]
[1756453122751,1e-08,209.45,209.44,42.82]
[1756453123052,0.66000001,209.45,209.44,42.82]
[1756453123254,0.66000001,209.45,209.42,19.12993639]
[1756453123451,0.66,209.44,209.4,19.12993639]
[1756453123771,0.66,209.43,209.38,19.12993639]
[1756453124081,13.59559401,209.41,209.36,19.15993639]
[1756453124282,0.66,209.4,209.36,0.03]
[1756453124581,13.59559401,209.36,209.33,0.03]
[1756453124786,13.59559401,209.36,209.31,0.03]
[1756453124787,18.37296836,209.32,209.31,0.03]
[1756453125079,32.7255304,209.32,209.31,0.03]
[1756453125379,14.25559401,209.32,209.31,0.03]
[1756453125561,14.25559401,209.32,209.13,0.61]
[1756453125562,39.59559401,209.28,209.13,0.61]
[1756453125750,13.59559401,209.19,209.13,42.8]
[1756453125948,33.3855304,209.19,209.13,42.8]
[1756453126360,14.25559401,209.19,209.13,61.92993639]
[1756453126966,0.66,209.19,209.16,19.12993639]
[1756453127273,0.66,209.18,209.13,29.47349413]
[1756453127479,29.47349413,209.18,209.12,72.27349413]
[1756453127674,0.66,209.17,209.12,72.27349413]
[1756453127852,0.66,209.16,209.11,29.47349413]
[1756453128054,30.77904016,209.25,209.01,5.61]
[1756453128055,43.06908814,209.14,209.01,5.61]
[1756453128255,43.06908814,209.14,209.08,29.47349413]
[1756453128473,13.59559401,209.14,209.08,29.47349413]
[1756453128673,13.59559401,209.14,209.09,29.47349413]
[1756453128879,26.66,209.17,209.1,34.25589489]
[1756453129066,13.59559401,209.16,209.11,29.47349413]
[1756453129250,13.59559401,209.19,209.13,29.47349413]
[1756453129556,0.66,209.2,209.13,29.47349413]
[1756453129761,0.66,209.2,209.14,29.47349413]
[1756453130067,30.13349413,209.2,209.11,42.8]
[1756453130270,30.13349413,209.2,209.13,29.47349413]
[1756453130471,0.66,209.2,209.14,29.47349413]
[1756453130781,0.66,209.2,209.15,4.78125747]
[1756453131078,0.66,209.19,209.15,4.78125747]
[1756453131658,29.47349413,209.23,209.16,29.47349413]
[1756453131857,13.59559401,209.23,209.17,29.47349413]
[1756453132954,13.59559401,209.23,209.18,4.78057175]
[1756453133269,0.66,209.22,209.18,4.78057175]
[1756453134572,26.0,209.26,209.18,4.78057175]
[1756453134573,0.66,209.26,209.21,29.47349413]
[1756453134876,3.17900472,209.32,209.22,0.61]
[1756453135079,3.17900472,209.32,209.18,85.53200114]
[1756453135080,3.17900472,209.32,209.27,29.47349413]
[1756453135284,0.66,209.38,209.31,29.47349413]
[1756453135583,3.83923156,209.38,209.34,29.47349413]
[1756453135791,29.47349413,209.4,209.34,29.47349413]
[1756453135792,3.17923156,209.39,209.34,29.47349413]
[1756453136003,3.23923156,209.42,209.37,29.47349413]
[1756453136185,0.72,209.42,209.38,29.47349413]
[1756453136382,0.06,209.42,209.38,29.47349413]
[1756453136586,0.06,209.42,209.41,29.47349413]
[1756453137185,0.06,209.42,209.33,16.71984557]
[1756453137391,3.23875863,209.42,209.38,29.47349413]
[1756453137583,0.66,209.41,209.38,29.47349413]
[1756453137986,0.66,209.4,209.36,29.47349413]
[1756453138190,0.66,209.4,209.37,29.47349413]
[1756453138512,13.65559401,209.42,209.39,4.77577725]
[1756453138802,0.06,209.42,209.39,4.77577725]
[1756453138976,0.72,209.42,209.39,4.77577725]
[1756453139178,13.59559401,209.41,209.39,4.77577725]
[1756453139381,0.06,209.42,209.39,4.77577725]
[1756453139602,0.06,209.42,209.39,34.24927138]
[1756453139775,13.65559401,209.42,209.39,34.24927138]
[1756453140201,0.06,209.42,209.41,29.47349413]
[1756453140709,0.06,209.42,209.41,4.77532114]
[1756453141283,0.06,209.42,209.41,34.24881527]
[1756453141600,0.06,209.42,209.41,4.77532114]
[1756453141801,0.06,209.42,209.38,42.76]
[1756453141802,30.23349413,209.42,209.38,42.76]
[1756453142193,0.06,209.42,209.38,42.76]
[1756453142379,0.06,209.42,209.4,29.47349413]
[1756453142714,0.06,209.42,209.41,4.77532114]
[1756453142899,1e-08,209.45,209.41,16.71362399]
[1756453143102,1e-08,209.45,209.44,29.47349413]
[1756453143481,1e-08,209.45,209.42,43.37]
[1756453143703,1e-08,209.45,209.44,29.47349413]
[1756453144295,1e-08,209.45,209.44,98.23349413]
[1756453144490,1e-08,209.45,209.44,103.00813125]
[1756453144802,1e-08,209.45,209.44,103.61813125]
[1756453145476,1e-08,209.45,209.44,73.53463712]
[1756453145676,1e-08,209.45,209.44,47.53463712]
[1756453146203,1e-08,209.45,209.44,77.00813125]
[1756453147219,13.59559401,209.55,209.47,26.0]
[1756453147408,13.69559401,209.56,209.51,29.47349413]
[1756453147617,43.86908814,209.56,209.51,42.72]
[1756453147916,29.47349413,209.52,209.51,42.72]
[1756453148077,13.59559401,209.51,209.44,16.71122993]
[1756453148273,13.59559401,209.51,209.46,29.47349413]
[1756453148503,0.7,209.52,209.45,42.72]
[1756453148711,13.59559401,209.51,209.46,46.18312841]
[1756453148891,13.59559401,209.51,209.47,29.47349413]
[1756453149100,13.59559401,209.51,209.48,42.72]
[1756453149789,13.59559401,209.51,209.49,4.77349754]
[1756453149984,0.06,209.5,209.49,4.77349754]
[1756453154203,0.1,209.56,209.49,35.88100654]
[1756453154403,0.1,209.56,209.53,19.17376515]
[1756453154603,0.1,209.56,209.54,42.68]
[1756453155509,0.1,209.56,209.53,42.68]
[1756453155818,32.76935916,209.54,209.49,4.77349754]
[1756453156026,13.59559401,209.52,209.49,4.77349754]
[1756453156322,33.46935916,209.52,209.49,4.77349754]
[1756453156521,14.29559401,209.52,209.49,4.77349754]
[1756453156901,13.59559401,209.52,209.49,4.77349754]
[1756453157113,13.59559401,209.5,209.49,4.77349754]
[1756453158233,13.59559401,209.51,209.49,4.77349754]
[1756453158404,13.59559401,209.49,209.47,4.77375163]
[1756453158611,14.29559401,209.48,209.47,4.77375163]
[1756453158908,14.29559401,209.48,209.45,42.66]
[1756453158909,13.59559401,209.47,209.45,42.66]
[1756453159112,19.87376515,209.46,209.44,4.77463712]
[1756453159693,0.7,209.46,209.44,4.77463712]
[1756453159902,13.59559401,209.45,209.44,4.77463712]
[1756453160528,13.59559401,209.45,209.4,26.0]
[1756453160529,13.59559401,209.44,209.4,4.77554918]
[1756453160725,32.76935916,209.41,209.39,4.80576694]
[1756453160928,0.7,209.43,209.39,4.80576694]
[1756453161103,13.59559401,209.42,209.39,4.80576694]
[1756453162303,0.7,209.43,209.39,0.03]
[1756453162631,13.59559401,209.42,209.39,0.03]
[1756453163519,33.46935916,209.42,209.39,0.03]
[1756453163826,32.76935916,209.4,209.39,0.03]
[1756453164327,33.46935916,209.4,209.39,0.03]
[1756453164540,13.59559401,209.39,209.36,0.03]
[1756453164717,19.17376515,209.37,209.36,0.03]
[1756453165096,26.0,209.45,209.36,0.03]
[1756453165097,14.29559401,209.4,209.36,0.03]
[1756453165301,32.76935916,209.42,209.37,42.62]
[1756453165503,19.17376515,209.4,209.37,42.62]
[1756453165703,32.76935916,209.39,209.37,42.62]
[1756453165906,19.17376515,209.38,209.36,0.03]
[1756453166113,32.76935916,209.37,209.36,0.03]
[1756453166426,33.46935916,209.37,209.36,0.03]
[1756453166639,33.46935916,209.37,209.34,0.03]
[1756453166837,32.76935916,209.35,209.34,0.03]
[1756453167130,13.59559401,209.35,209.34,0.03]
[1756453167312,32.76935916,209.39,209.36,0.03]
[1756453167505,13.59559401,209.39,209.36,0.03]
[1756453167712,13.59559401,209.37,209.36,0.03]
[1756453168118,32.76935916,209.37,209.36,0.03]
[1756453168320,13.59559401,209.37,209.36,0.03]
[1756453168518,14.29559401,209.37,209.36,0.03]
[1756453169031,33.46935916,209.37,209.36,0.03]
[1756453169329,19.17376515,209.4,209.36,0.03]
[1756453169506,26.0,209.44,209.37,19.17376515]
[1756453169507,19.17376515,209.43,209.37,19.17376515]
[1756453169722,13.59559401,209.42,209.39,19.17376515]
[1756453170024,19.17376515,209.46,209.4,19.17376515]
[1756453170207,0.7,209.48,209.43,19.17376515]
[1756453170408,19.17376515,209.51,209.45,19.17376515]
[1756453170631,13.59559401,209.5,209.46,4.77418122]
[1756453170931,33.45935916,209.5,209.46,4.77418122]
[1756453171125,13.59559401,209.48,209.46,4.77418122]
[1756453171632,33.45935916,209.48,209.46,4.77418122]
[1756453172211,13.59559401,209.46,209.41,42.6]
[1756453172532,13.59559401,209.43,209.41,42.6]
[1756453172710,13.59559401,209.43,209.42,4.77509311]
[1756453173130,33.45935916,209.43,209.39,42.58]
[1756453173349,13.59559401,209.39,209.36,4.80625912]
[1756453173511,0.69,209.38,209.36,4.80625912]
[1756453173836,13.59559401,209.39,209.36,4.80625912]
[1756453174211,0.69,209.41,209.36,16.74741311]
[1756453174412,13.59559401,209.42,209.37,42.58]
[1756453174618,13.59559401,209.42,209.38,4.77600534]
[1756453174619,32.76935916,209.42,209.38,4.77600534]
[1756453175033,33.45935916,209.42,209.38,4.77600534]
[1756453175840,13.59559401,209.4,209.38,4.77600534]
[1756453176336,14.28559401,209.39,209.38,4.77600534]
[1756453176528,33.45935916,209.39,209.38,4.77600534]
[1756453176734,13.59559401,209.38,209.36,4.80644288]
[1756453176933,13.59559401,209.39,209.36,4.80644288]
[1756453177517,13.59559401,209.4,209.36,4.80644288]
[1756453177717,0.69,209.43,209.36,16.74759687]
[1756453178037,13.59559401,209.42,209.37,19.17376515]
[1756453178218,13.59559401,209.42,209.37,0.67]
[1756453178418,13.59559401,209.42,209.36,16.74759687]
[1756453178419,19.17376515,209.44,209.38,19.84376515]
[1756453178736,13.59559401,209.43,209.4,4.77554918]
[1756453179835,13.59559401,209.45,209.4,16.71442215]
[1756453180131,13.59559401,209.48,209.43,19.17376515]
[1756453180438,19.17376515,209.52,209.45,19.17376515]
[1756453180644,19.17376515,209.47,209.4,17.38442215]
[1756453180843,17.48632198,209.46,209.35,4.77668975]
[1756453181148,13.59559401,209.41,209.36,19.20376515]
[1756453181317,13.59559401,209.41,209.36,0.03]
[1756453181518,13.59559401,209.41,209.36,19.20376515]
[1756453181937,19.17376515,209.38,209.36,0.03]
[1756453182444,19.86376515,209.38,209.36,0.03]
[1756453183024,0.69,209.38,209.36,0.03]
[1756453183331,3.8921164,209.38,209.36,0.03]
[1756453183722,3.2021164,209.38,209.36,0.03]
[1756453184519,3.20176172,209.38,209.36,0.03]
[1756453184938,13.59559401,209.37,209.36,0.03]
[1756453185143,33.45935916,209.37,209.36,0.03]
[1756453185553,14.28559401,209.37,209.36,0.03]
[1756453185722,33.45935916,209.37,209.36,0.03]
[1756453187630,14.28559401,209.37,209.36,0.03]
[1756453187839,33.45935916,209.37,209.36,0.03]
[1756453188044,14.28559401,209.37,209.36,0.03]
[1756453188229,33.45935916,209.37,209.36,0.03]
[1756453188654,14.28559401,209.37,209.36,0.03]
[1756453189156,19.17376515,209.37,209.36,0.03]
[1756453189648,19.17376515,209.38,209.36,0.03]
[1756453190252,13.59559401,209.37,209.36,0.03]
[1756453190752,33.45935916,209.37,209.36,0.03]
[1756453190928,36.65975089,209.37,209.36,0.03]
[1756453191627,33.45935916,209.37,209.36,0.03]
[1756453192547,14.28559401,209.37,209.36,0.03]
[1756453192726,33.45935916,209.37,209.36,0.03]
[1756453193851,14.28559401,209.37,209.36,0.03]
[1756453194034,33.45935916,209.37,209.36,0.03]
[1756453194845,13.59559401,209.37,209.36,0.03]
[1756453195172,32.76935916,209.37,209.36,0.03]
[1756453195539,33.45935916,209.37,209.36,0.03]
[1756453197066,32.76935916,209.37,209.36,0.03]
[1756453198251,13.59559401,209.37,209.36,0.03]
[1756453199250,13.59559401,209.39,209.36,0.03]
[1756453199571,13.59559401,209.39,209.36,19.87376515]
[1756453199794,0.06,209.42,209.36,19.20376515]
[1756453200065,0.06,209.42,209.38,19.17376515]
[1756453200278,0.06,209.42,209.4,19.17376515]
[1756453200440,0.06,209.45,209.41,61.59376515]
[1756453200641,0.06,209.45,209.41,42.42]
[1756453200855,3.3055965,209.56,209.47,26.0]
[1756453201036,0.1,209.56,209.53,4.77258626]
[1756453201248,19.17376515,209.55,209.47,26.0]
[1756453201456,22.37743084,209.54,209.48,19.17376515]
[1756453201656,22.37743084,209.54,209.49,42.42]
[1756453201657,19.17376515,209.54,209.49,42.42]
[1756453201865,19.17376515,209.51,209.47,42.42]
[1756453202078,0.1,209.56,209.47,61.59376515]
[1756453202291,13.69559401,209.56,209.51,19.17376515]
[1756453202442,13.59559401,209.54,209.51,19.17376515]
[1756453202643,0.1,209.56,209.51,19.17376515]
[1756453202942,0.1,209.56,209.48,0.61]
[1756453202943,0.1,209.56,209.53,19.17376515]
[1756453203160,0.1,209.56,209.54,5.38235849]
[1756453203350,0.1,209.56,209.53,19.17376515]
[1756453203565,0.1,209.56,209.53,0.61]
[1756453203878,19.17376515,209.55,209.5,26.0]
[1756453204067,14.30559401,209.54,209.5,26.0]
[1756453204269,14.30559401,209.54,209.5,45.17376515]
[1756453204468,14.30559401,209.54,209.5,26.0]
[1756453204662,13.59559401,209.54,209.5,26.0]
[1756453205159,0.81,209.56,209.5,26.0]
[1756453205355,13.59559401,209.54,209.49,42.4]
[1756453205578,4.87193346,209.56,209.5,19.78376515]
[1756453205579,0.1,209.56,209.5,19.78376515]
[1756453205778,13.69559401,209.56,209.51,19.17376515]
[1756453205979,0.1,209.56,209.51,19.17376515]
[1756453206469,0.71,209.55,209.51,19.17376515]
[1756453207077,0.1,209.56,209.51,19.17376515]
[1756453207459,0.1,209.56,209.52,19.17376515]
[1756453207660,0.1,209.56,209.51,0.61]
[1756453207860,0.1,209.56,209.54,19.17376515]
[1756453208077,0.1,209.56,209.55,19.17376515]
[1756453209001,0.1,209.56,209.54,61.53376515]
[1756453209291,0.71,209.55,209.52,42.34]
[1756453209472,0.71,209.54,209.52,42.34]
[1756453209880,13.59559401,209.53,209.52,42.34]
[1756453210275,13.59559401,209.55,209.52,42.34]
[1756453210665,13.59559401,209.53,209.5,42.34]
[1756453211892,19.17376515,209.53,209.47,19.17376515]
[1756453212195,19.17376515,209.53,209.48,42.34]
[1756453212400,19.88376515,209.53,209.48,42.34]
[1756453212707,0.71,209.52,209.48,42.34]
[1756453213004,13.59559401,209.53,209.48,42.34]
[1756453213488,14.30559401,209.53,209.48,42.34]
[1756453213684,0.71,209.52,209.46,23.94777005]
[1756453213890,32.76935916,209.51,209.47,42.3]
[1756453214300,32.76935916,209.51,209.44,19.17376515]
[1756453214488,13.59559401,209.49,209.45,42.3]
[1756453214876,13.59559401,209.5,209.45,42.3]
[1756453215898,32.76935916,209.5,209.45,42.3]
[1756453217016,0.71,209.49,209.41,42.28]
[1756453217305,13.59559401,209.46,209.41,42.28]
[1756453217509,13.59559401,209.44,209.41,42.28]
[1756453217677,14.30559401,209.44,209.41,42.28]
[1756453218286,33.47935916,209.44,209.41,42.28]
[1756453218700,0.71,209.43,209.38,42.28]
[1756453219014,32.76935916,209.48,209.42,19.17376515]
[1756453219221,13.59559401,209.47,209.42,61.45376515]
[1756453219396,13.59559401,209.5,209.45,19.17376515]
[1756453219722,13.59559401,209.5,209.43,0.61]
[1756453219723,13.59559401,209.5,209.46,66.22794637]
[1756453219917,13.59559401,209.5,209.46,42.28]
[1756453220212,18.36862785,209.52,209.46,42.28]
[1756453220390,13.59559401,209.49,209.46,42.28]
[1756453220591,13.59559401,209.49,209.42,4.77509311]
[1756453220793,0.71,209.51,209.43,42.26]
[1756453221016,13.59559401,209.5,209.44,19.17376515]
[1756453221201,13.59559401,209.5,209.45,19.17376515]
[1756453221518,13.59559401,209.5,209.44,19.17376515]
[1756453221698,13.59559401,209.5,209.45,4.77440916]
[1756453221899,13.59559401,209.53,209.48,19.17376515]
[1756453222215,13.59559401,209.54,209.49,62.04376515]
[1756453222404,13.59559401,209.54,209.5,42.26]
[1756453223120,0.06,209.53,209.5,42.26]
[1756453223921,0.06,209.53,209.5,47.03305703]
[1756453224801,0.06,209.53,209.51,19.78376515]
[1756453224999,0.06,209.53,209.52,19.17376515]
[1756453225194,0.06,209.53,209.52,19.78376515]
[1756453225798,0.06,209.53,209.52,24.5565792]
[1756453226909,0.1,209.56,209.55,26.0]
[1756453227117,0.1,209.56,209.55,87.39376515]
[1756453227510,0.1,209.56,209.55,88.00376515]
[1756453228119,0.1,209.56,209.55,92.1658959]
[1756453228502,0.1,209.56,209.55,68.22]
[1756453228707,0.1,209.56,209.55,72.99213075]
[1756453228928,0.1,209.56,209.55,72.97213075]
[1756453229097,0.1,209.56,209.55,46.97213075]
[1756453229624,0.1,209.56,209.55,66.7558959]
[1756453230329,1e-08,209.56,209.55,85.92966105]
[1756453230999,1e-08,209.56,209.55,66.7558959]
[1756453231224,1e-08,209.56,209.55,5.38213075]
[1756453231422,1e-08,209.56,209.55,92.1258959]
[1756453232532,1e-08,209.56,209.55,49.9458959]
[1756453232699,1e-08,209.56,209.55,26.0]
[1756453232905,1e-08,209.56,209.55,68.16]
[1756453233532,1e-08,209.56,209.52,23.94636246]
[1756453233750,1e-08,209.56,209.53,42.16]
[1756453234129,1e-08,209.56,209.54,4.77235849]
[1756453235525,1e-08,209.56,209.55,42.16]
[1756453236743,13.59559401,209.55,209.46,4.77418122]
[1756453236924,19.17376515,209.5,209.47,42.12]
[1756453237321,19.17376515,209.48,209.47,42.12]
[1756453237717,19.84376515,209.48,209.47,42.12]
[1756453238031,13.59559401,209.47,209.43,42.12]
[1756453238226,0.67,209.46,209.43,42.12]
[1756453238426,19.84376515,209.46,209.43,42.12]
[1756453238747,19.17376515,209.47,209.43,46.89481875]
[1756453238926,19.84376515,209.47,209.43,46.89481875]
[1756453240543,19.17376515,209.45,209.43,42.12]
[1756453240740,0.67,209.46,209.43,46.8948203]
[1756453241049,19.84376515,209.46,209.43,46.8948203]
[1756453241427,13.59559401,209.48,209.44,0.03]
[1756453241735,13.59559401,209.52,209.47,19.17376515]
[1756453241938,13.59559401,209.52,209.48,42.1]
[1756453242240,19.84376515,209.51,209.48,42.1]
[1756453242544,0.67,209.5,209.48,42.1]